OrganisationURI,OrganisationLabel,OrganisationalUnit,TransactionNumber,Invoice Ref.,BeneficiaryName,Expense Type,Purpose,PaymentDate,Amount
http://statistics.data.gov.uk/id/local-authority-district/23UB,Cheltenham Borough Council,Adaptations for the Disabled (CBC),14035696,REDACTED,The Surveying Practice - Client Account,C1107-CAH028,Building Works,27/03/2015,"7,575.67 "
http://statistics.data.gov.uk/id/local-authority-district/23UB,Cheltenham Borough Council,Adaptations for the Disabled (CBC),14035256,REDACTED,The Surveying Practice - Client Account,C1107-CAH028,Building Works,06/03/2015,"16,568.61 "
http://statistics.data.gov.uk/id/local-authority-district/23UB,Cheltenham Borough Council,Adaptations for the Disabled (CBC),14035695,REDACTED,The Surveying Practice - Client Account,C1107-CAH028,Building Works,27/03/2015,"17,164.58 "
http://statistics.data.gov.uk/id/local-authority-district/23UB,Cheltenham Borough Council,Affordable housing grants,14035408,DEBT103754,Tewkesbury Borough Council,C1005-CAP225,Surveyors Fees,27/03/2015,586.52 
http://statistics.data.gov.uk/id/local-authority-district/23UB,Cheltenham Borough Council,Affordable housing grants,14035341,debt103528,Tewkesbury Borough Council,C1004-CAP225,Legal Fees,27/03/2015,"4,162.81 "
http://statistics.data.gov.uk/id/local-authority-district/23UB,Cheltenham Borough Council,Allotments,14035517,1172,D W Brookes (Resurfacing Limited),C1100-CAP501,Construction,27/03/2015,"2,359.00 "
http://statistics.data.gov.uk/id/local-authority-district/23UB,Cheltenham Borough Council,Allotments,14035517,1172,D W Brookes (Resurfacing Limited),C1100-CAP501,Construction,27/03/2015,"7,530.00 "
http://statistics.data.gov.uk/id/local-authority-district/23UB,Cheltenham Borough Council,Allotments,14035647,1171,D W Brookes (Resurfacing Limited),C1100-CAP501,Construction,27/03/2015,"8,865.00 "
http://statistics.data.gov.uk/id/local-authority-district/23UB,Cheltenham Borough Council,Animal Control,14035140,8191399,Bromsgrove District Council,R4413-REG003,Dog Kennels Fees,06/03/2015,"1,030.00 "
http://statistics.data.gov.uk/id/local-authority-district/23UB,Cheltenham Borough Council,Arle Road Nursery Operations,14035620,14723,Complete Climate Solutions,R2008-OPS101,R & M of Build - Reactive Repairs,27/03/2015,"1,106.33 "
http://statistics.data.gov.uk/id/local-authority-district/23UB,Cheltenham Borough Council,Arle Road Nursery Operations,14035194,20141530,The Building Works,R2078-OPS101,R&M of Build - external structures,06/03/2015,"1,190.00 "
http://statistics.data.gov.uk/id/local-authority-district/23UB,Cheltenham Borough Council,Art Gallery & Museum Repairs & Maintenance,14035608,14721,Complete Climate Solutions,R2080-CUL117,Mechanical Services,27/03/2015,520.84 
http://statistics.data.gov.uk/id/local-authority-district/23UB,Cheltenham Borough Council,Asbestos Management,14035956,4354,Environmental Management Solutions Limited,C1107-CAH012,Building Works,31/03/2015,"5,107.50 "
http://statistics.data.gov.uk/id/local-authority-district/23UB,Cheltenham Borough Council,Building Control - Fee Earning Work,14035202,C38,B R G Interim Solutions Limited,R1100-BUC001,Agency Staff,06/03/2015,"1,419.65 "
http://statistics.data.gov.uk/id/local-authority-district/23UB,Cheltenham Borough Council,Building Control - Fee Earning Work,14035414,C40,B R G Interim Solutions Limited,R1100-BUC001,Agency Staff,20/03/2015,"1,437.65 "
http://statistics.data.gov.uk/id/local-authority-district/23UB,Cheltenham Borough Council,Building Control - Fee Earning Work,14035442,C42,B R G Interim Solutions Limited,R1100-BUC001,Agency Staff,20/03/2015,"1,456.10 "
http://statistics.data.gov.uk/id/local-authority-district/23UB,Cheltenham Borough Council,Building Control - Fee Earning Work,14035192,C39,B R G Interim Solutions Limited,R1100-BUC001,Agency Staff,06/03/2015,"1,646.47 "
http://statistics.data.gov.uk/id/local-authority-district/23UB,Cheltenham Borough Council,Building Control - Fee Earning Work,14035413,C41,B R G Interim Solutions Limited,R1100-BUC001,Agency Staff,20/03/2015,"1,852.57 "
http://statistics.data.gov.uk/id/local-authority-district/23UB,Cheltenham Borough Council,Building Control - Fee Earning Work,14035720,C44,B R G Interim Solutions Limited,R1100-BUC001,Agency Staff,31/03/2015,"1,872.44 "
http://statistics.data.gov.uk/id/local-authority-district/23UB,Cheltenham Borough Council,Building Control - Fee Earning Work,14035443,C43,B R G Interim Solutions Limited,R1100-BUC001,Agency Staff,20/03/2015,"1,881.92 "
http://statistics.data.gov.uk/id/local-authority-district/23UB,Cheltenham Borough Council,Built Environment,14035284,7402188324,Dell Corporation Limited,R4531-SUP040,IT - Purchase of Software,06/03/2015,620.16 
http://statistics.data.gov.uk/id/local-authority-district/23UB,Cheltenham Borough Council,Built Environment,14035522,I52563,Ice Creates Limited,R4411-SUP040,Consultancy Fees,31/03/2015,"4,350.00 "
http://statistics.data.gov.uk/id/local-authority-district/23UB,Cheltenham Borough Council,Bulky Household Waste,14035218,15-May,Vision 21,R4401-WST004,Services - Fees and Charges,13/03/2015,"2,931.25 "
http://statistics.data.gov.uk/id/local-authority-district/23UB,Cheltenham Borough Council,Car Park Income Collection,14035528,489688,Security Plus+ Limited,R4435-CPK002,Cash Collection Contract,27/03/2015,708.31 
http://statistics.data.gov.uk/id/local-authority-district/23UB,Cheltenham Borough Council,Car Parks - Off Street Operations,14035545,DEBT103778,Tewkesbury Borough Council,R4426-CPK001,Legal Expenses,27/03/2015,709.28 
http://statistics.data.gov.uk/id/local-authority-district/23UB,Cheltenham Borough Council,Car Parks - Off Street Operations,14035385,651225,CLARKE WILLMOTT LLP,R4400-CPK001,Services - Professional Fees,20/03/2015,900.00 
http://statistics.data.gov.uk/id/local-authority-district/23UB,Cheltenham Borough Council,Car Parks - Off Street Operations,14035534,5838,JS Facilities Group Limited,R4401-CPK001,Services - Fees and Charges,27/03/2015,"1,493.00 "
http://statistics.data.gov.uk/id/local-authority-district/23UB,Cheltenham Borough Council,Car Parks - Off Street Operations,14035534,5838,JS Facilities Group Limited,R4401-CPK001,Services - Fees and Charges,27/03/2015,"1,500.00 "
http://statistics.data.gov.uk/id/local-authority-district/23UB,Cheltenham Borough Council,Car Parks - Off Street Operations,14035726,UK77207,Parkeon Limited,R4400-CPK001,Services - Professional Fees,27/03/2015,"1,720.00 "
http://statistics.data.gov.uk/id/local-authority-district/23UB,Cheltenham Borough Council,Car Parks - Off Street Operations,14035182,UK76550,Parkeon Limited,R4401-CPK001,Services - Fees and Charges,13/03/2015,"1,740.88 "
http://statistics.data.gov.uk/id/local-authority-district/23UB,Cheltenham Borough Council,Car Parks - Off Street Operations,14035170,121-005636,Chiefield Limited T/A Brown Advertising And Design,R4300-CPK001,Printing - Services,06/03/2015,"1,990.80 "
http://statistics.data.gov.uk/id/local-authority-district/23UB,Cheltenham Borough Council,Car Parks - Off Street Operations,14035433,2679,John Ryde Commercial,R2200-CPK001,Rent,27/03/2015,"8,875.00 "
http://statistics.data.gov.uk/id/local-authority-district/23UB,Cheltenham Borough Council,Car Parks - Off Street R&M,14035188,2588,Greenway Partnership Limited T/A GPL Building Services,R2004-CPK101,R & M of Build Programmed,06/03/2015,"4,087.37 "
http://statistics.data.gov.uk/id/local-authority-district/23UB,Cheltenham Borough Council,CCTV,14035532,82663,OpenView Security Solutions Limited,R4003-CCT001,Tools & Equipment - R & M,27/03/2015,"1,419.17 "
http://statistics.data.gov.uk/id/local-authority-district/23UB,Cheltenham Borough Council,CCTV,14034545,582946,OpenView Security Solutions Limited,R4003-CCT001,Tools & Equipment - R & M,20/03/2015,"1,419.17 "
http://statistics.data.gov.uk/id/local-authority-district/23UB,Cheltenham Borough Council,CCTV,14035388,586703,OpenView Security Solutions Limited,R4003-CCT001,Tools & Equipment - R & M,20/03/2015,"1,419.17 "
http://statistics.data.gov.uk/id/local-authority-district/23UB,Cheltenham Borough Council,Cemetery & Crematorium Repairs & Maintenance,14035584,14737,Complete Climate Solutions,R2080-CCM111,Mechanical Services,27/03/2015,600.00 
http://statistics.data.gov.uk/id/local-authority-district/23UB,Cheltenham Borough Council,Cemetery & Crematorium Repairs & Maintenance,14035451,4609,System Six Design & Build,R2700-CCM111,Contract Cleaning,20/03/2015,600.00 
http://statistics.data.gov.uk/id/local-authority-district/23UB,Cheltenham Borough Council,Cemetery & Crematorium Repairs & Maintenance,14035191,3121,PJ Combustion Solutions Limited,R4003-CCM111,Tools & Equipment - R & M,06/03/2015,"1,577.02 "
http://statistics.data.gov.uk/id/local-authority-district/23UB,Cheltenham Borough Council,Cemetery & Crematorium Repairs & Maintenance,14035584,14737,Complete Climate Solutions,R2080-CCM111,Mechanical Services,27/03/2015,"2,199.00 "
http://statistics.data.gov.uk/id/local-authority-district/23UB,Cheltenham Borough Council,Cemetery & Crematorium Repairs & Maintenance,14035190,3122,PJ Combustion Solutions Limited,R2004-CCM111,R & M of Build Programmed,06/03/2015,"2,252.00 "
http://statistics.data.gov.uk/id/local-authority-district/23UB,Cheltenham Borough Council,Cemetery & Crematorium Repairs & Maintenance,14035187,2444,Greenway Partnership Limited T/A GPL Building Services,R2004-CCM111,R & M of Build Programmed,06/03/2015,"2,811.05 "
http://statistics.data.gov.uk/id/local-authority-district/23UB,Cheltenham Borough Council,"Cemetery, Crematorium and Churchyards",14035295,10282,Goldingham Contracts Limited,R2075-CCM001,Grounds Maintenance - Contract,06/03/2015,562.00 
http://statistics.data.gov.uk/id/local-authority-district/23UB,Cheltenham Borough Council,"Cemetery, Crematorium and Churchyards",14035421,545657,Comensura Limited,R1100-CCM001,Agency Staff,20/03/2015,663.30 
http://statistics.data.gov.uk/id/local-authority-district/23UB,Cheltenham Borough Council,"Cemetery, Crematorium and Churchyards",14035771,1606517,Spaldings Limited,R4000-CCM001,Equipment Purchase,31/03/2015,668.71 
http://statistics.data.gov.uk/id/local-authority-district/23UB,Cheltenham Borough Council,"Cemetery, Crematorium and Churchyards",14035648,270215,Mr J Sureda,R4401-CCM001,Services - Fees and Charges,27/03/2015,728.56 
http://statistics.data.gov.uk/id/local-authority-district/23UB,Cheltenham Borough Council,"Cemetery, Crematorium and Churchyards",14035677,28523,CDK Castings Limited T/A Arkell & Hurcombe,R4011-CCM001,Goods For Resale,27/03/2015,784.50 
http://statistics.data.gov.uk/id/local-authority-district/23UB,Cheltenham Borough Council,"Cemetery, Crematorium and Churchyards",14035964,53938,Cheltenham Garden Machinery,R4000-CCM001,Equipment Purchase,31/03/2015,"1,182.00 "
http://statistics.data.gov.uk/id/local-authority-district/23UB,Cheltenham Borough Council,"Cemetery, Crematorium and Churchyards",14031141,60004422,Ubico Limited,R3022-CCM001,Vehicle Maintenance - Repairs,31/03/2015,"1,309.17 "
http://statistics.data.gov.uk/id/local-authority-district/23UB,Cheltenham Borough Council,"Cemetery, Crematorium and Churchyards",14035463,60005223,Ubico Limited,R3041-CCM001,Transport Dept Charges,27/03/2015,"1,309.17 "
http://statistics.data.gov.uk/id/local-authority-district/23UB,Cheltenham Borough Council,"Cemetery, Crematorium and Churchyards",14035770,"CC5175,76,77",CJ & CE Cleevely T/A Cleevely Memorials,R2075-CCM001,Grounds Maintenance - Contract,31/03/2015,"1,705.00 "
http://statistics.data.gov.uk/id/local-authority-district/23UB,Cheltenham Borough Council,Central Purchasing,14035663,54636,BIP Solutions Limited,R4701-SUP033,Subscriptions,27/03/2015,"2,000.00 "
http://statistics.data.gov.uk/id/local-authority-district/23UB,Cheltenham Borough Council,Cheltenham Business Partnership,14035769,150319-008,Blackadder Media Limited,R4411-HLD130,Consultancy Fees,31/03/2015,"4,200.00 "
http://statistics.data.gov.uk/id/local-authority-district/23UB,Cheltenham Borough Council,Cheltenham Depot,14035533,5797,JS Facilities Group Limited,R4401-ADB103,Services - Fees and Charges,27/03/2015,"1,260.00 "
http://statistics.data.gov.uk/id/local-authority-district/23UB,Cheltenham Borough Council,Cheltenham Depot,14035373,2602,Greenway Partnership Limited T/A GPL Building Services,R2043-ADB103,R & M of Build Drain Cleaning,20/03/2015,"1,444.24 "
http://statistics.data.gov.uk/id/local-authority-district/23UB,Cheltenham Borough Council,Cheltenham Depot,14035391,2507,Greenway Partnership Limited T/A GPL Building Services,R2008-ADB103,R & M of Build - Reactive Repairs,20/03/2015,"2,900.00 "
http://statistics.data.gov.uk/id/local-authority-district/23UB,Cheltenham Borough Council,Cheltenham Municipal Offices,14035446,41588,Hi-Lo Crystal Clear Limited,R2700-ADB101,Contract Cleaning,20/03/2015,"1,550.00 "
http://statistics.data.gov.uk/id/local-authority-district/23UB,Cheltenham Borough Council,Cheltenham Municipal Offices,14035550,1163637,Otis Limited,R2010-ADB101,R & M of Plant Lifts,31/03/2015,"3,412.37 "
http://statistics.data.gov.uk/id/local-authority-district/23UB,Cheltenham Borough Council,Cheltenham Strategic partnership,14035247,6381,Severn Wye Energy Agency Limited,R4401-PLP103,Services - Fees and Charges,06/03/2015,"1,000.00 "
http://statistics.data.gov.uk/id/local-authority-district/23UB,Cheltenham Borough Council,Commercial Properties,14035359,REDACTED,Longlevens Building & Roofing Limited,C1107-CAH038,Building Works,13/03/2015,"2,342.50 "
http://statistics.data.gov.uk/id/local-authority-district/23UB,Cheltenham Borough Council,Community Development,14035429,DHR-KP 280215,REDACTED,R6280-COM001,Grants,20/03/2015,540.00 
http://statistics.data.gov.uk/id/local-authority-district/23UB,Cheltenham Borough Council,Community Development,14035093,4368,Gloucestershire Association for Voluntary & Community Action (GAVCA),R4401-COM001,Services - Fees and Charges,06/03/2015,"2,500.00 "
http://statistics.data.gov.uk/id/local-authority-district/23UB,Cheltenham Borough Council,Community Development,14035340,OAKLEY DA CHILDRENS CENTRE,Gardners Lane & Oakwood Federation,R6280-COM001,Grants,13/03/2015,"3,500.50 "
http://statistics.data.gov.uk/id/local-authority-district/23UB,Cheltenham Borough Council,Community Safety (Crime Reduction),14035300,198,Gaskins Treework Specialists,R4401-CCR001,Services - Fees and Charges,13/03/2015,"1,546.00 "
http://statistics.data.gov.uk/id/local-authority-district/23UB,Cheltenham Borough Council,Community Welfare Grants,14035379,INTERCLIMATE TRUST,INTER-CLIMATE TRUST,R6280-GBD001,Grants,13/03/2015,"1,200.00 "
http://statistics.data.gov.uk/id/local-authority-district/23UB,Cheltenham Borough Council,Community Welfare Grants,14035381,FOP,Friends of Pittville,R6280-GBD001,Grants,13/03/2015,"1,500.00 "
http://statistics.data.gov.uk/id/local-authority-district/23UB,Cheltenham Borough Council,Community Welfare Grants,14035092,4369,Gloucestershire Association for Voluntary & Community Action (GAVCA),R6280-GBD001,Grants,13/03/2015,"2,500.00 "
http://statistics.data.gov.uk/id/local-authority-district/23UB,Cheltenham Borough Council,Community Welfare Grants,14035246,144,Cheltenham Design Foundation,R6280-GBD001,Grants,06/03/2015,"4,000.00 "
http://statistics.data.gov.uk/id/local-authority-district/23UB,Cheltenham Borough Council,Community Welfare Grants,14035279,community pride 04.03.15,Holst Birthplace Museum,R6280-GBD001,Grants,06/03/2015,"4,000.00 "
http://statistics.data.gov.uk/id/local-authority-district/23UB,Cheltenham Borough Council,Corporate Management,14035467,8314718,Grant Thornton UK LLP,R4430-COR001,Audit Fees,20/03/2015,"11,780.00 "
http://statistics.data.gov.uk/id/local-authority-district/23UB,Cheltenham Borough Council,Corporate Management,14035740,8322235,Grant Thornton UK LLP,R4430-COR001,Audit Fees,31/03/2015,"16,243.50 "
http://statistics.data.gov.uk/id/local-authority-district/23UB,Cheltenham Borough Council,Corporate Policy Making,14035407,967666,Disclosure & Barring Service,R4401-COR003,Services - Fees and Charges,20/03/2015,660.00 
http://statistics.data.gov.uk/id/local-authority-district/23UB,Cheltenham Borough Council,Corporate Policy Making,14035538,SPINV21336,HQN Limited,R4701-COR003,Subscriptions,27/03/2015,"1,000.00 "
http://statistics.data.gov.uk/id/local-authority-district/23UB,Cheltenham Borough Council,Corporate Policy Making,14035405,1503076,Hitec (Laboratories) Limited,R4531-COR003,IT - Purchase of Software,20/03/2015,"4,025.00 "
http://statistics.data.gov.uk/id/local-authority-district/23UB,Cheltenham Borough Council,Council Tax Collection,14035418,9049264091,Royal Mail,R4521-LTC001,Postages - franking machine,27/03/2015,543.68 
http://statistics.data.gov.uk/id/local-authority-district/23UB,Cheltenham Borough Council,Council Tax Collection,14035067,9049167592,Royal Mail,R4521-LTC001,Postages - franking machine,06/03/2015,551.90 
http://statistics.data.gov.uk/id/local-authority-district/23UB,Cheltenham Borough Council,Council Tax Collection,14035468,9049322086,Royal Mail,R4521-LTC001,Postages - franking machine,27/03/2015,686.29 
http://statistics.data.gov.uk/id/local-authority-district/23UB,Cheltenham Borough Council,Council Tax Collection,14035131,c/bc131581,Civica UK Limited (Burston Road),R4401-LTC001,Services - Fees and Charges,06/03/2015,"2,000.00 "
http://statistics.data.gov.uk/id/local-authority-district/23UB,Cheltenham Borough Council,Council Tax Leaflet,14035617,c tax leaflet credit dist,Tewkesbury Borough Council,R9100-LTC003,Contributions - County Council,20/03/2015,"4,038.83 "
http://statistics.data.gov.uk/id/local-authority-district/23UB,Cheltenham Borough Council,Council Tax Leaflet,14035618,c tax leaflet credit dist,Stroud District Council,R9100-LTC003,Contributions - County Council,20/03/2015,"5,282.41 "
http://statistics.data.gov.uk/id/local-authority-district/23UB,Cheltenham Borough Council,Council Tax Leaflet,14035614,c tax leaflet credit dist,Gloucester City Council,R9100-LTC003,Contributions - County Council,20/03/2015,"5,852.39 "
http://statistics.data.gov.uk/id/local-authority-district/23UB,Cheltenham Borough Council,Council Tax Leaflet,14035291,7990,Now Media Limited,R4400-LTC003,Services - Professional Fees,13/03/2015,"28,960.00 "
http://statistics.data.gov.uk/id/local-authority-district/23UB,Cheltenham Borough Council,Cultural - Service Management and Support Services,14035526,7000562X,The Cheltenham Trust,R1006-CSM001,Salaries - Superannuation,20/03/2015,"25,808.99 "
http://statistics.data.gov.uk/id/local-authority-district/23UB,Cheltenham Borough Council,Cultural - Service Management and Support Services,14035907,70006331,The Cheltenham Trust,R1006-CSM001,Salaries - Superannuation,31/03/2015,"26,061.21 "
http://statistics.data.gov.uk/id/local-authority-district/23UB,Cheltenham Borough Council,Democratic Representation and Management,14035401,62207,Alpha Colour Printers Limited,R4300-DRM001,Printing - Services,20/03/2015,709.00 
http://statistics.data.gov.uk/id/local-authority-district/23UB,Cheltenham Borough Council,Development Control - Applications,14035737,1064889,The Oyster Partnership Limited,R1100-DEV001,Agency Staff,31/03/2015,981.01 
http://statistics.data.gov.uk/id/local-authority-district/23UB,Cheltenham Borough Council,Development Control - Applications,14035427,1064236,OYSTER PARTNERSHIP,R1100-DEV001,Agency Staff,20/03/2015,"1,049.63 "
http://statistics.data.gov.uk/id/local-authority-district/23UB,Cheltenham Borough Council,Development Control - Applications,14035741,1065183,The Oyster Partnership Limited,R1100-DEV001,Agency Staff,31/03/2015,"1,162.50 "
http://statistics.data.gov.uk/id/local-authority-district/23UB,Cheltenham Borough Council,Development Control - Applications,14035509,1064558,OYSTER PARTNERSHIP,R1100-DEV001,Agency Staff,27/03/2015,"1,165.13 "
http://statistics.data.gov.uk/id/local-authority-district/23UB,Cheltenham Borough Council,Development Control - Applications,14035181,1063933,The Oyster Partnership,R1100-DEV001,Agency Staff,06/03/2015,"1,302.76 "
http://statistics.data.gov.uk/id/local-authority-district/23UB,Cheltenham Borough Council,Development Control - Applications,14035207,11645,Artful Limited,R4300-DEV001,Printing - Services,06/03/2015,"2,063.36 "
http://statistics.data.gov.uk/id/local-authority-district/23UB,Cheltenham Borough Council,Development Control - Applications,14035298,2.50001E+13,Valuation Office Agency (VOA),R4400-DEV001,Services - Professional Fees,13/03/2015,"2,499.83 "
http://statistics.data.gov.uk/id/local-authority-district/23UB,Cheltenham Borough Council,Development costs - Garages Sites 2,14035174,SI-2488,A D Horner Limited,C1107-CAH052,Building Works,06/03/2015,575.00 
http://statistics.data.gov.uk/id/local-authority-district/23UB,Cheltenham Borough Council,Development costs - Garages Sites 2,14035282,6976,Jerry Ross Arbouricultural Consultancy,C1107-CAH052,Building Works,06/03/2015,720.00 
http://statistics.data.gov.uk/id/local-authority-district/23UB,Cheltenham Borough Council,Development costs - Garages Sites 2,14035173,T0580,Entran Limited,C1107-CAH052,Building Works,06/03/2015,"1,200.00 "
http://statistics.data.gov.uk/id/local-authority-district/23UB,Cheltenham Borough Council,Disabled Facility Grants,14035699,REDACTED,T P G Disable Aids Limited (TPG),C5000-CAP221,Grants,27/03/2015,"1,843.00 "
http://statistics.data.gov.uk/id/local-authority-district/23UB,Cheltenham Borough Council,Disabled Facility Grants,14035698,REDACTED,T P G Disable Aids Limited (TPG),C5000-CAP221,Grants,27/03/2015,"4,628.00 "
http://statistics.data.gov.uk/id/local-authority-district/23UB,Cheltenham Borough Council,Disabled Facility Grants,14035701,REDACTED,Mears Home Improvements (Client Account),C5000-CAP221,Grants,27/03/2015,"5,000.00 "
http://statistics.data.gov.uk/id/local-authority-district/23UB,Cheltenham Borough Council,Disabled Facility Grants,14035339,REDACTED,Mears Home Improvements (Client Account),C5000-CAP221,Grants,13/03/2015,"5,879.70 "
http://statistics.data.gov.uk/id/local-authority-district/23UB,Cheltenham Borough Council,Disabled Facility Grants,14035700,REDACTED,Mears Home Improvements (Client Account),C5000-CAP221,Grants,27/03/2015,"6,981.82 "
http://statistics.data.gov.uk/id/local-authority-district/23UB,Cheltenham Borough Council,Disabled Facility Grants,14035273,REDACTED,Mears Home Improvements (Client Account),C5000-CAP221,Grants,06/03/2015,"8,140.00 "
http://statistics.data.gov.uk/id/local-authority-district/23UB,Cheltenham Borough Council,Disabled Facility Grants,14035697,REDACTED,The Surveying Practice - Client Account,C5000-CAP221,Grants,27/03/2015,"8,152.95 "
http://statistics.data.gov.uk/id/local-authority-district/23UB,Cheltenham Borough Council,Disabled Facility Grants,14035272,REDACTED,The Surveying Practice - Client Account,C5000-CAP221,Grants,06/03/2015,"14,547.00 "
http://statistics.data.gov.uk/id/local-authority-district/23UB,Cheltenham Borough Council,District Elections,14035301,8915,Halarose Limited,R4531-ELE002,IT - Purchase of Software,06/03/2015,"10,054.73 "
http://statistics.data.gov.uk/id/local-authority-district/23UB,Cheltenham Borough Council,Environmental Health General,14035285,INV504635,Chartered Institute of Environmental Health - London,R1700-REG001,Staff Advertising Costs,13/03/2015,700.00 
http://statistics.data.gov.uk/id/local-authority-district/23UB,Cheltenham Borough Council,Environmental Health General,14035290,3074,"Acoustics, Noise & Vibration Limited t/a A V Calibration",R4003-REG001,Tools & Equipment - R & M,06/03/2015,920.00 
http://statistics.data.gov.uk/id/local-authority-district/23UB,Cheltenham Borough Council,Environmental Health General,14035719,110143,BUCKINGHAM FUTURES LTD,R1100-REG001,Agency Staff,27/03/2015,"1,212.78 "
http://statistics.data.gov.uk/id/local-authority-district/23UB,Cheltenham Borough Council,Environmental Works (Tenant Selection),14035083,1715,MPL Wrought Iron LLP,C1107-CAH029,Building Works,06/03/2015,"2,706.00 "
http://statistics.data.gov.uk/id/local-authority-district/23UB,Cheltenham Borough Council,Environmental Works (Tenant Selection),14035685,wm005840,English Landscapes Limited t/a The Landscape Group,C1107-CAH029,Building Works,27/03/2015,"6,726.19 "
http://statistics.data.gov.uk/id/local-authority-district/23UB,Cheltenham Borough Council,External Improvements,14035520,1727,MPL Wrought Iron LLP,C1107-CAH003,Building Works,27/03/2015,"2,400.00 "
http://statistics.data.gov.uk/id/local-authority-district/23UB,Cheltenham Borough Council,External Improvements,14035133,5013,Mcdonnell Price Roofing Contractors Limited,C1107-CAH003,Building Works,06/03/2015,"6,378.40 "
http://statistics.data.gov.uk/id/local-authority-district/23UB,Cheltenham Borough Council,External Improvements,14035955,5110,G Purchase Construction Limited,C1107-CAH003,Building Works,31/03/2015,"7,750.95 "
http://statistics.data.gov.uk/id/local-authority-district/23UB,Cheltenham Borough Council,Flood Risk Management,14035263,870,Anderson Civil Engineering UK Limited,R5001-FRM101,TPP - Major External Contractors,06/03/2015,731.00 
http://statistics.data.gov.uk/id/local-authority-district/23UB,Cheltenham Borough Council,Flood Risk Management,14035423,32477,Halcrow Group Limited,R5001-FRM101,TPP - Major External Contractors,20/03/2015,"2,702.00 "
http://statistics.data.gov.uk/id/local-authority-district/23UB,Cheltenham Borough Council,Flood Risk Management,14035866,32886,Halcrow Group Limited,R5001-FRM101,TPP - Major External Contractors,31/03/2015,"4,090.42 "
http://statistics.data.gov.uk/id/local-authority-district/23UB,Cheltenham Borough Council,Gain/loss on Sale of HRA Non-current Assets,14035220,1015,NORTON SURVEYORS,R8301-HRA400,Gain/loss on disposal of non-current assets,06/03/2015,"1,330.00 "
http://statistics.data.gov.uk/id/local-authority-district/23UB,Cheltenham Borough Council,Gain/loss on Sale of HRA Non-current Assets,14035257,6017000506,Capita Property and Infrastructure Limited,R8301-HRA400,Gain/loss on disposal of non-current assets,13/03/2015,"6,949.20 "
http://statistics.data.gov.uk/id/local-authority-district/23UB,Cheltenham Borough Council,Garage Improvements,14035810,10309,Up & Over Doors Limited,C1107-CAH008,Building Works,31/03/2015,"7,159.33 "
http://statistics.data.gov.uk/id/local-authority-district/23UB,Cheltenham Borough Council,General Fund Balance Sheet,14035383,MAYORS CHARITY 9/3/15,MAYORS CHARITY ACCOUNT,B6170-BAL100,Short Term Revenue Creditors (incl RIA) - Other entities and individuals,13/03/2015,946.27 
http://statistics.data.gov.uk/id/local-authority-district/23UB,Cheltenham Borough Council,General Fund Balance Sheet,14035715,Payment in Error (REDACTED),REDACTED,B6170-BAL100,Short Term Revenue Creditors (incl RIA) - Other entities and individuals,27/03/2015,"1,000.00 "
http://statistics.data.gov.uk/id/local-authority-district/23UB,Cheltenham Borough Council,General Fund Balance Sheet,14035613,94031197,CO-OP,B6170-BAL100,Short Term Revenue Creditors (incl RIA) - Other entities and individuals,20/03/2015,"1,374.00 "
http://statistics.data.gov.uk/id/local-authority-district/23UB,Cheltenham Borough Council,General Fund Balance Sheet,14035278,childcare vouchers 040315,The Midcounties Co-operative,B6170-BAL100,Short Term Revenue Creditors (incl RIA) - Other entities and individuals,27/03/2015,"2,750.00 "
http://statistics.data.gov.uk/id/local-authority-district/23UB,Cheltenham Borough Council,General Fund Balance Sheet,14035472,CIS DEDUCT 0602-050315,HMRC (CBC - CIS),B6220-BAL100,CIS Deductions Control (reallocated),17/03/2015,"2,986.27 "
http://statistics.data.gov.uk/id/local-authority-district/23UB,Cheltenham Borough Council,Gloucestershire Airport,14035311,A-02-15-07,York Aviation LLP,R4411-AIR101,Consultancy Fees,06/03/2015,"22,752.00 "
http://statistics.data.gov.uk/id/local-authority-district/23UB,Cheltenham Borough Council,GO ICT Centre of Excellence,14035470,912686-064,Virgin Media Business,R4548-SUP101,IT - Cabling and Network,20/03/2015,"61,927.43 "
http://statistics.data.gov.uk/id/local-authority-district/23UB,Cheltenham Borough Council,Homelessness,14035806,260315,REDACTED,R6280-HOM001,Grants,31/03/2015,600.00 
http://statistics.data.gov.uk/id/local-authority-district/23UB,Cheltenham Borough Council,Homelessness,14035244,1800348512,Gloucestershire County Council,R9016-HOM001,Homelessness grant,06/03/2015,"10,049.97 "
http://statistics.data.gov.uk/id/local-authority-district/23UB,Cheltenham Borough Council,Housing Benefit Administration,14035396,62202,Alpha Colour Printers Limited,R4300-HBA001,Printing - Services,20/03/2015,595.00 
http://statistics.data.gov.uk/id/local-authority-district/23UB,Cheltenham Borough Council,Housing Standards,14035004,35778,Ferret Information,R4531-HOS004,IT - Purchase of Software,06/03/2015,513.00 
http://statistics.data.gov.uk/id/local-authority-district/23UB,Cheltenham Borough Council,Housing Standards,14035546,DEBT103777,Tewkesbury Borough Council,R4426-HOS004,Legal Expenses,27/03/2015,773.76 
http://statistics.data.gov.uk/id/local-authority-district/23UB,Cheltenham Borough Council,ICT,14035900,33075418,West Oxfordshire District Council,R4000-SUP005,Equipment Purchase,31/03/2015,"4,870.00 "
http://statistics.data.gov.uk/id/local-authority-district/23UB,Cheltenham Borough Council,Income and Expenditure on Investment Properties and Changes in Their Fair Value,14035196,523,C P W Daniell Limited,R4400-FIE040,Services - Professional Fees,06/03/2015,600.00 
http://statistics.data.gov.uk/id/local-authority-district/23UB,Cheltenham Borough Council,Income and Expenditure on Investment Properties and Changes in Their Fair Value,14035539,2559,Greenway Partnership Limited T/A GPL Building Services,R2004-FIE040,R & M of Build Programmed,27/03/2015,"5,922.00 "
http://statistics.data.gov.uk/id/local-authority-district/23UB,Cheltenham Borough Council,Income and Expenditure on Investment Properties and Changes in Their Fair Value,14035193,161879,E.G. Carter & Co. Limited,R2004-FIE040,R & M of Build Programmed,06/03/2015,"22,370.16 "
http://statistics.data.gov.uk/id/local-authority-district/23UB,Cheltenham Borough Council,Individual Electoral Registration,14035468,9049322086,Royal Mail,R4521-ELE010,Postages - franking machine,27/03/2015,807.94 
http://statistics.data.gov.uk/id/local-authority-district/23UB,Cheltenham Borough Council,Internal Improvements,14035688,7872,NKS Contracts (Central) Limited,C1107-CAH004,Building Works,27/03/2015,"81,374.87 "
http://statistics.data.gov.uk/id/local-authority-district/23UB,Cheltenham Borough Council,Internal Improvements - Communal,14035386,INV001088,Facilities Management & Builiding Repairs Limited,C1107-CAH035,Building Works,20/03/2015,"22,479.87 "
http://statistics.data.gov.uk/id/local-authority-district/23UB,Cheltenham Borough Council,Internal Improvements - Communal,14035286,INV001087,Facilities Management & Builiding Repairs Limited,C1107-CAH035,Building Works,06/03/2015,"23,432.25 "
http://statistics.data.gov.uk/id/local-authority-district/23UB,Cheltenham Borough Council,Joint Core Strategy,14035276,28355,DPDS Regional Limited - DPDS Consulting Group,R4400-PLP101,Services - Professional Fees,06/03/2015,"2,519.68 "
http://statistics.data.gov.uk/id/local-authority-district/23UB,Cheltenham Borough Council,Joint Core Strategy,14035665,2.50001E+13,Valuation Office Agency (VOA),R4400-PLP101,Services - Professional Fees,27/03/2015,"2,915.00 "
http://statistics.data.gov.uk/id/local-authority-district/23UB,Cheltenham Borough Council,Joint Core Strategy,14035807,DEBT103817,Tewkesbury Borough Council,R4401-PLP101,Services - Fees and Charges,31/03/2015,"3,711.80 "
http://statistics.data.gov.uk/id/local-authority-district/23UB,Cheltenham Borough Council,Joint Core Strategy,14035304,114705 MFE,Peter Brett Associates LLP,R4400-PLP101,Services - Professional Fees,06/03/2015,"5,000.00 "
http://statistics.data.gov.uk/id/local-authority-district/23UB,Cheltenham Borough Council,Joint Core Strategy,14034996,62010,Alpha Colour Printers Limited,R4400-PLP101,Services - Professional Fees,06/03/2015,"6,816.00 "
http://statistics.data.gov.uk/id/local-authority-district/23UB,Cheltenham Borough Council,Joint Core Strategy,14035524,14055529,Atkins Limited (Transport Planning),R4400-PLP101,Services - Professional Fees,20/03/2015,"6,824.91 "
http://statistics.data.gov.uk/id/local-authority-district/23UB,Cheltenham Borough Council,Joint Core Strategy,14035264,4,Urban Development & Transport Limited,R4400-PLP101,Services - Professional Fees,06/03/2015,"9,750.00 "
http://statistics.data.gov.uk/id/local-authority-district/23UB,Cheltenham Borough Council,Lift Refurbishment,14035166,INV58487,Triangle Lift Services Limited,C1107-CAH011,Building Works,06/03/2015,"2,340.00 "
http://statistics.data.gov.uk/id/local-authority-district/23UB,Cheltenham Borough Council,Neighbourhood works 2012/13,14035309,28946,Allhands Limited T/A Harrold Jones Services,C1107-CAH005,Building Works,06/03/2015,920.94 
http://statistics.data.gov.uk/id/local-authority-district/23UB,Cheltenham Borough Council,Neighbourhood works 2012/13,14035691,1725,MPL Wrought Iron LLP,C1107-CAH005,Building Works,27/03/2015,"1,330.00 "
http://statistics.data.gov.uk/id/local-authority-district/23UB,Cheltenham Borough Council,Neighbourhood works 2012/13,14035217,INV001086,Facilities Management & Builiding Repairs Limited,C1107-CAH005,Building Works,06/03/2015,"1,421.26 "
http://statistics.data.gov.uk/id/local-authority-district/23UB,Cheltenham Borough Council,Neighbourhood works 2012/13,14035654,wm005838,English Landscapes Limited t/a The Landscape Group,C1107-CAH005,Building Works,27/03/2015,"4,215.28 "
http://statistics.data.gov.uk/id/local-authority-district/23UB,Cheltenham Borough Council,Neighbourhood works 2012/13,14035686,wm005841,English Landscapes Limited t/a The Landscape Group,C1107-CAH005,Building Works,27/03/2015,"6,123.15 "
http://statistics.data.gov.uk/id/local-authority-district/23UB,Cheltenham Borough Council,Neighbourhood works 2012/13,14022424,INV1021,Facilities Management & Builiding Repairs Limited,C1107-CAH005,Building Works,06/03/2015,"10,000.00 "
http://statistics.data.gov.uk/id/local-authority-district/23UB,Cheltenham Borough Council,Neighbourhood works 2012/13,14035687,wm005839,English Landscapes Limited t/a The Landscape Group,C1107-CAH005,Building Works,27/03/2015,"25,987.50 "
http://statistics.data.gov.uk/id/local-authority-district/23UB,Cheltenham Borough Council,New Cremators,14035189,3125,PJ Combustion Solutions Limited,C4000-CAP001,Acquisition of Equipment,06/03/2015,"7,818.00 "
http://statistics.data.gov.uk/id/local-authority-district/23UB,Cheltenham Borough Council,Parks & Gardens Operations,14031141,60004422,Ubico Limited,R3041-OPS001,Transport Dept Charges,31/03/2015,595.00 
http://statistics.data.gov.uk/id/local-authority-district/23UB,Cheltenham Borough Council,Parks & Gardens Operations,14035463,60005223,Ubico Limited,R3041-OPS001,Transport Dept Charges,27/03/2015,595.00 
http://statistics.data.gov.uk/id/local-authority-district/23UB,Cheltenham Borough Council,Parks & Gardens Operations,14035672,2512,Lushglen Exterior Furniture Renovation Services,R2075-OPS001,Grounds Maintenance - Contract,31/03/2015,691.00 
http://statistics.data.gov.uk/id/local-authority-district/23UB,Cheltenham Borough Council,Parks & Gardens Operations,14035671,2504,Lushglen Exterior Furniture Renovation Services,R2075-OPS001,Grounds Maintenance - Contract,27/03/2015,730.00 
http://statistics.data.gov.uk/id/local-authority-district/23UB,Cheltenham Borough Council,Parks & Gardens Operations,14035255,REDACTED,REDCATED,R1411-OPS001,Insurance - Public Liability,06/03/2015,735.00 
http://statistics.data.gov.uk/id/local-authority-district/23UB,Cheltenham Borough Council,Parks & Gardens Operations,14035937,2033,Jayson R C Bayliss,R2500-OPS001,Fixtures and Fittings - Purchases,31/03/2015,"2,750.00 "
http://statistics.data.gov.uk/id/local-authority-district/23UB,Cheltenham Borough Council,"Paths, Fences & Walls",14035296,1374,Brown Bull,C1107-CAH021,Building Works,13/03/2015,"1,500.00 "
http://statistics.data.gov.uk/id/local-authority-district/23UB,Cheltenham Borough Council,"Paths, Fences & Walls",14035653,1722,MPL Wrought Iron LLP,C1107-CAH021,Building Works,27/03/2015,"5,000.00 "
http://statistics.data.gov.uk/id/local-authority-district/23UB,Cheltenham Borough Council,Pittville Pump Room Repairs & Maintenance,14035502,4622,System Six Design & Build,R2081-CUL113,Roof Repairs,20/03/2015,601.70 
http://statistics.data.gov.uk/id/local-authority-district/23UB,Cheltenham Borough Council,Pittville Pump Room Repairs & Maintenance,14035186,2333,Greenway Partnership Limited T/A GPL Building Services,R2500-CUL113,Fixtures and Fittings - Purchases,06/03/2015,"3,722.00 "
http://statistics.data.gov.uk/id/local-authority-district/23UB,Cheltenham Borough Council,Planning Policy,14035392,11503,CLAIRE CULLEN-JONES,R4400-PLP001,Services - Professional Fees,20/03/2015,"1,204.74 "
http://statistics.data.gov.uk/id/local-authority-district/23UB,Cheltenham Borough Council,Play areas enhancement,14035287,220168,Medway Galvanising Company Limited,C4000-CAP102,Acquisition of Equipment,06/03/2015,856.72 
http://statistics.data.gov.uk/id/local-authority-district/23UB,Cheltenham Borough Council,Play areas enhancement,14035473,136054,Matta Products (UK) Limited,C4000-CAP102,Acquisition of Equipment,27/03/2015,"1,507.50 "
http://statistics.data.gov.uk/id/local-authority-district/23UB,Cheltenham Borough Council,Play areas enhancement,14035948,6747,Walden & Doyle Limited,C4000-CAP102,Acquisition of Equipment,31/03/2015,"1,950.00 "
http://statistics.data.gov.uk/id/local-authority-district/23UB,Cheltenham Borough Council,Press & PR/Communications,14035551,IN4515,Access Intelligence Media & Communications Limited,R4534-SUP018,IT - Maint Agreements,27/03/2015,"3,850.00 "
http://statistics.data.gov.uk/id/local-authority-district/23UB,Cheltenham Borough Council,Prince of Wales Stadium Repairs & Maintenance,14035376,2470,Greenway Partnership Limited T/A GPL Building Services,R2004-REC112,R & M of Build Programmed,20/03/2015,"2,682.00 "
http://statistics.data.gov.uk/id/local-authority-district/23UB,Cheltenham Borough Council,Prince of Wales Stadium Repairs & Maintenance,14035375,2544,Greenway Partnership Limited T/A GPL Building Services,R2004-REC112,R & M of Build Programmed,20/03/2015,"6,946.00 "
http://statistics.data.gov.uk/id/local-authority-district/23UB,Cheltenham Borough Council,Printing Services,14035299,336807,Springfield Business Papers Limited,R4306-SUP022,Photocopier Charges - Consumables,31/03/2015,621.00 
http://statistics.data.gov.uk/id/local-authority-district/23UB,Cheltenham Borough Council,Printing Services,14035731,100154438,Ricoh UK Limited,R4300-SUP022,Printing - Services,27/03/2015,"1,341.32 "
http://statistics.data.gov.uk/id/local-authority-district/23UB,Cheltenham Borough Council,Private Sector Housing Grants,14035390,1800351524,Gloucestershire County Council,R6280-PSH001,Grants,27/03/2015,"15,950.00 "
http://statistics.data.gov.uk/id/local-authority-district/23UB,Cheltenham Borough Council,Project Management,14035521,101001199,Progility plc t/a ILX Group,R1652-SUP036,Training Fees (External),20/03/2015,504.09 
http://statistics.data.gov.uk/id/local-authority-district/23UB,Cheltenham Borough Council,Property Services,14035422,1005190209,Hays Specialist Recruitment Limited,R1100-SUP025,Agency Staff,20/03/2015,"1,089.28 "
http://statistics.data.gov.uk/id/local-authority-district/23UB,Cheltenham Borough Council,Property Services,14034096,DEBT103636,Tewkesbury Borough Council,R4426-SUP025,Legal Expenses,06/03/2015,"8,958.72 "
http://statistics.data.gov.uk/id/local-authority-district/23UB,Cheltenham Borough Council,Public Conveniences,14035448,510453,Andy Loos Limited,R2083-REG019,R&M of Build - Routine,20/03/2015,756.90 
http://statistics.data.gov.uk/id/local-authority-district/23UB,Cheltenham Borough Council,Reception/Customer Services,14035432,98185952,BENTLEY SYSTEMS (UK) LTD,R4539-SUP008,IT - Consultancy,27/03/2015,"8,500.00 "
http://statistics.data.gov.uk/id/local-authority-district/23UB,Cheltenham Borough Council,Reception/Customer Services,14035664,47663555,Bentley Systems International Limited,R4534-SUP008,IT - Maint Agreements,27/03/2015,"9,412.18 "
http://statistics.data.gov.uk/id/local-authority-district/23UB,Cheltenham Borough Council,Recreation Centre Repairs & Maintenance,14035588,14701,Complete Climate Solutions,R2080-REC111,Mechanical Services,27/03/2015,538.13 
http://statistics.data.gov.uk/id/local-authority-district/23UB,Cheltenham Borough Council,Recreation Centre Repairs & Maintenance,14035625,14731,Complete Climate Solutions,R2008-REC111,R & M of Build - Reactive Repairs,27/03/2015,"1,507.93 "
http://statistics.data.gov.uk/id/local-authority-district/23UB,Cheltenham Borough Council,Recreation Centre Repairs & Maintenance,14035892,301267/2/2015,Ener-G Combined Power (South) Limited,R2100-REC111,Electricity,31/03/2015,"3,914.90 "
http://statistics.data.gov.uk/id/local-authority-district/23UB,Cheltenham Borough Council,Recycling Collection Schemes,14035440,60009522,Local World Limited (was Northcliffe Media),R4317-RYC006,Non Staff Advertising,27/03/2015,"1,573.00 "
http://statistics.data.gov.uk/id/local-authority-district/23UB,Cheltenham Borough Council,Recycling Collection Schemes,14035673,17253,Straight plc,R4000-RYC006,Equipment Purchase,27/03/2015,"13,275.00 "
http://statistics.data.gov.uk/id/local-authority-district/23UB,Cheltenham Borough Council,Registration of Electors,14035067,9049167592,Royal Mail,R4521-ELE001,Postages - franking machine,06/03/2015,576.92 
http://statistics.data.gov.uk/id/local-authority-district/23UB,Cheltenham Borough Council,Registration of Electors,14035564,27962,Alpha Response Print & Mail Limited,R4300-ELE001,Printing - Services,27/03/2015,651.62 
http://statistics.data.gov.uk/id/local-authority-district/23UB,Cheltenham Borough Council,Registration of Electors,14035565,27952,Alpha Response Print & Mail Limited,R4300-ELE001,Printing - Services,27/03/2015,717.00 
http://statistics.data.gov.uk/id/local-authority-district/23UB,Cheltenham Borough Council,Rent Allowances,14035751,REDACTED,"GLOUCESTER CITY COUNCIL,",R6200-HBP001,Rent Allowances,27/03/2015,773.30 
http://statistics.data.gov.uk/id/local-authority-district/23UB,Cheltenham Borough Council,Rent Control,14035709,RENT REFUND (REDACTED),REDACTED,R9910-HRA900,Refund of Overpiad Rent,27/03/2015,576.47 
http://statistics.data.gov.uk/id/local-authority-district/23UB,Cheltenham Borough Council,Rent Control,14035516,RENT REFUND (REDACTED),REDACTED,R9910-HRA900,Refund of Overpiad Rent,20/03/2015,885.09 
http://statistics.data.gov.uk/id/local-authority-district/23UB,Cheltenham Borough Council,Rent Control,14035710,RENT REFUND (REDACTED),REDACTED,R9910-HRA900,Refund of Overpiad Rent,27/03/2015,"1,425.97 "
http://statistics.data.gov.uk/id/local-authority-district/23UB,Cheltenham Borough Council,"Rents, Rates, Taxes and Other Charges",14035556,6503531176 120215,Severn Trent Water,R2400-HRA120,Water Services - Unmetered,27/03/2015,603.11 
http://statistics.data.gov.uk/id/local-authority-district/23UB,Cheltenham Borough Council,"Rents, Rates, Taxes and Other Charges",14035258,397141103,Severn Trent Water,R2400-HRA120,Water Services - Unmetered,06/03/2015,636.29 
http://statistics.data.gov.uk/id/local-authority-district/23UB,Cheltenham Borough Council,"Rents, Rates, Taxes and Other Charges",14035262,6400925473 19022015,Severn Trent Water,R2400-HRA120,Water Services - Unmetered,06/03/2015,826.97 
http://statistics.data.gov.uk/id/local-authority-district/23UB,Cheltenham Borough Council,"Rents, Rates, Taxes and Other Charges",14035259,6401427376 19022015,Severn Trent Water,R2400-HRA120,Water Services - Unmetered,06/03/2015,"1,150.74 "
http://statistics.data.gov.uk/id/local-authority-district/23UB,Cheltenham Borough Council,"Rents, Rates, Taxes and Other Charges",14035261,397141101,Severn Trent Water,R2400-HRA120,Water Services - Unmetered,06/03/2015,"1,515.47 "
http://statistics.data.gov.uk/id/local-authority-district/23UB,Cheltenham Borough Council,Repairs and Maintenance,14035426,570,SAS EPC,R2018-HRA100,R & M of Build Voids Energy Performance Certificates,20/03/2015,990.00 
http://statistics.data.gov.uk/id/local-authority-district/23UB,Cheltenham Borough Council,Repairs and Maintenance,14035329,O0371766,Orbis Protect Limited,R2012-HRA100,R & M of Build Standby and Call Out,06/03/2015,"1,047.03 "
http://statistics.data.gov.uk/id/local-authority-district/23UB,Cheltenham Borough Council,Repairs and Maintenance,14035415,IN005884,C F Roberts (Elect Contrs) plc,R2062-HRA100,R & M of Build Cyclical Electrical Remedials,20/03/2015,"1,219.30 "
http://statistics.data.gov.uk/id/local-authority-district/23UB,Cheltenham Borough Council,Repairs and Maintenance,14035555,IN005997,C F Roberts (Elect Contrs) plc,R2062-HRA100,R & M of Build Cyclical Electrical Remedials,27/03/2015,"1,222.64 "
http://statistics.data.gov.uk/id/local-authority-district/23UB,Cheltenham Borough Council,Repairs and Maintenance,14035281,in005811,C F Roberts (Elect Contrs) plc,R2008-HRA100,R & M of Build - Reactive Repairs,06/03/2015,"1,485.87 "
http://statistics.data.gov.uk/id/local-authority-district/23UB,Cheltenham Borough Council,Repairs and Maintenance,14035280,in005810,C F Roberts (Elect Contrs) plc,R2008-HRA100,R & M of Build - Reactive Repairs,06/03/2015,"4,318.48 "
http://statistics.data.gov.uk/id/local-authority-district/23UB,Cheltenham Borough Council,Repairs and Maintenance,14035554,IN005998,C F Roberts (Elect Contrs) plc,R2061-HRA100,R & M of Build Cyclical Electric Inspections,27/03/2015,"5,031.00 "
http://statistics.data.gov.uk/id/local-authority-district/23UB,Cheltenham Borough Council,Repairs and Maintenance,14035416,IN005883,C F Roberts (Elect Contrs) plc,R2061-HRA100,R & M of Build Cyclical Electric Inspections,20/03/2015,"5,076.00 "
http://statistics.data.gov.uk/id/local-authority-district/23UB,Cheltenham Borough Council,Repairs and Maintenance,14035510,inv58710,Triangle Lift Services Limited,R2041-HRA100,R & M of Build Lifts,27/03/2015,"9,557.50 "
http://statistics.data.gov.uk/id/local-authority-district/23UB,Cheltenham Borough Council,Repairs and Maintenance,14035976,1052937,Liberty Gas Group,R2040-HRA100,R & M of Build Central Heating,31/03/2015,"25,768.84 "
http://statistics.data.gov.uk/id/local-authority-district/23UB,Cheltenham Borough Council,Repairs and Maintenance,14035283,150217aa11,Ian Williams Limited,R2060-HRA100,R & M of Build Cyclical Painting Communal Areas,06/03/2015,"50,230.40 "
http://statistics.data.gov.uk/id/local-authority-district/23UB,Cheltenham Borough Council,Sandford Lido car park,14035384,SANDFORD LIDO FEB 15,Sandford Parks Lido (Trading) Limited,R5003-CPK103,TPP - Agency Fees,20/03/2015,"-1,641.67 "
http://statistics.data.gov.uk/id/local-authority-district/23UB,Cheltenham Borough Council,Sandford Lido car park,14035219,SANDFORD LIDO JAN 15,Sandford Parks Lido (Trading) Limited,R5003-CPK103,TPP - Agency Fees,06/03/2015,"-1,641.67 "
http://statistics.data.gov.uk/id/local-authority-district/23UB,Cheltenham Borough Council,Sandford Lido car park,14035171,121-005637,Chiefield Limited T/A Brown Advertising And Design,R4300-CPK103,Printing - Services,06/03/2015,574.08 
http://statistics.data.gov.uk/id/local-authority-district/23UB,Cheltenham Borough Council,Sandford Lido car park,14035219,SANDFORD LIDO JAN 15,Sandford Parks Lido (Trading) Limited,R5003-CPK103,TPP - Agency Fees,06/03/2015,"19,053.09 "
http://statistics.data.gov.uk/id/local-authority-district/23UB,Cheltenham Borough Council,Sandford Lido car park,14035384,SANDFORD LIDO FEB 15,Sandford Parks Lido (Trading) Limited,R5003-CPK103,TPP - Agency Fees,20/03/2015,"19,163.57 "
http://statistics.data.gov.uk/id/local-authority-district/23UB,Cheltenham Borough Council,Scooter Stores,14035305,28941,Allhands Limited T/A Harrold Jones Services,C1107-CAH037,Building Works,13/03/2015,"2,182.00 "
http://statistics.data.gov.uk/id/local-authority-district/23UB,Cheltenham Borough Council,Scooter Stores,14035136,2191,West Midlands Services Limited,C1107-CAH037,Building Works,20/03/2015,"3,590.00 "
http://statistics.data.gov.uk/id/local-authority-district/23UB,Cheltenham Borough Council,Scooter Stores,14035135,2190,West Midlands Services Limited,C1107-CAH037,Building Works,06/03/2015,"3,630.00 "
http://statistics.data.gov.uk/id/local-authority-district/23UB,Cheltenham Borough Council,Sheltered Housing,14035292,1721,MPL Wrought Iron LLP,C1107-CAH014,Building Works,13/03/2015,"2,260.00 "
http://statistics.data.gov.uk/id/local-authority-district/23UB,Cheltenham Borough Council,Soil Stacks,14035370,Canberra House Gas Main Alts,Wales and West Utilities Ltd,C1107-CAH024,Building Works,13/03/2015,"8,285.41 "
http://statistics.data.gov.uk/id/local-authority-district/23UB,Cheltenham Borough Council,Soil Stacks,14035523,7836,Snape Contracting Limited (Snapecall),C1107-CAH024,Building Works,27/03/2015,"29,306.76 "
http://statistics.data.gov.uk/id/local-authority-district/23UB,Cheltenham Borough Council,Sports & Open Spaces Operations,14035703,15/006,J P North (Farmer),R2071-OPS002,Open Spaces and Grassed Areas,31/03/2015,557.50 
http://statistics.data.gov.uk/id/local-authority-district/23UB,Cheltenham Borough Council,Sports & Open Spaces Operations,14035939,2041,Jayson R C Bayliss,R4003-OPS002,Tools & Equipment - R & M,31/03/2015,750.00 
http://statistics.data.gov.uk/id/local-authority-district/23UB,Cheltenham Borough Council,Sports & Open Spaces Operations,14035395,15/004,J P North (Farmer),R2071-OPS002,Open Spaces and Grassed Areas,20/03/2015,"1,100.00 "
http://statistics.data.gov.uk/id/local-authority-district/23UB,Cheltenham Borough Council,Sports & Open Spaces Operations,14035518,15-366-MR,GB Sport & Leisure UK Ltd,R4000-OPS002,Equipment Purchase,27/03/2015,"1,331.50 "
http://statistics.data.gov.uk/id/local-authority-district/23UB,Cheltenham Borough Council,Sports & Open Spaces Operations,14035968,53258,Technical Rubber & Plastics Limited,R4003-OPS002,Tools & Equipment - R & M,31/03/2015,"1,495.00 "
http://statistics.data.gov.uk/id/local-authority-district/23UB,Cheltenham Borough Council,Sports & Open Spaces Operations,14035690,221842,Medway Galvanising Company Limited,R4000-OPS002,Equipment Purchase,27/03/2015,"3,802.42 "
http://statistics.data.gov.uk/id/local-authority-district/23UB,Cheltenham Borough Council,Sports & Open Spaces Operations,14035464,60005205,Ubico Limited,R2075-OPS002,Grounds Maintenance - Contract,20/03/2015,"6,144.00 "
http://statistics.data.gov.uk/id/local-authority-district/23UB,Cheltenham Borough Council,Sports & Open Spaces Operations,14035950,1209,N C Eldridge T/A Eldridge Tree Services,R2075-OPS002,Grounds Maintenance - Contract,31/03/2015,"8,250.00 "
http://statistics.data.gov.uk/id/local-authority-district/23UB,Cheltenham Borough Council,Sports & Open Spaces Repairs & Maintenance,14035491,2632,Greenway Partnership Limited T/A GPL Building Services,R2077-OPS122,R&M of Build - internal structures,20/03/2015,755.00 
http://statistics.data.gov.uk/id/local-authority-district/23UB,Cheltenham Borough Council,Structural / Damp Works,14035692,79/17/15705,Briggs Amasco Limited T/A Hyflex,C1107-CAH016,Building Works,27/03/2015,"15,104.15 "
http://statistics.data.gov.uk/id/local-authority-district/23UB,Cheltenham Borough Council,Structural / Damp Works,14035722,5020,Mcdonnell Price Roofing Contractors Limited,C1107-CAH016,Building Works,27/03/2015,"19,000.00 "
http://statistics.data.gov.uk/id/local-authority-district/23UB,Cheltenham Borough Council,Supervision and Management,14035080,REDACTED,REDACTED,R2020-HRA110,R & M of Build Tenant Reward Scheme,06/03/2015,500.00 
http://statistics.data.gov.uk/id/local-authority-district/23UB,Cheltenham Borough Council,Supervision and Management,14035465,1469,Gooch Group Limited (Cleaning not Products),R2701-HRA110,Window Cleaning,20/03/2015,600.23 
http://statistics.data.gov.uk/id/local-authority-district/23UB,Cheltenham Borough Council,Supervision and Management,14035327,671582196/0008,SSE - Southern Electric (Bill payments),R2100-HRA110,Electricity,06/03/2015,899.98 
http://statistics.data.gov.uk/id/local-authority-district/23UB,Cheltenham Borough Council,Supervision and Management,14035328,671582196/0007,SSE - Southern Electric (Bill payments),R2100-HRA110,Electricity,06/03/2015,977.43 
http://statistics.data.gov.uk/id/local-authority-district/23UB,Cheltenham Borough Council,Supervision and Management,14035558,SS 8308 0723,BT (Business Billing - Durham),R4507-HRA110,Comms - Mobile Telephones,27/03/2015,"1,390.70 "
http://statistics.data.gov.uk/id/local-authority-district/23UB,Cheltenham Borough Council,Supervision and Management,14034015,170875,A & E Fire Equipment Limited,R2083-HRA110,R&M of Build - Routine,06/03/2015,"1,435.17 "
http://statistics.data.gov.uk/id/local-authority-district/23UB,Cheltenham Borough Council,Supervision and Management,14035934,91,Chris Arnold Tree Surgery,R2070-HRA110,Tree Work,31/03/2015,"2,900.00 "
http://statistics.data.gov.uk/id/local-authority-district/23UB,Cheltenham Borough Council,Supervision and Management,14034385,SIAL/00012925,Herefordshire Housing Limited,R4445-HRA110,Communal Alarms - Monitoring & Maintenance,27/03/2015,"5,643.35 "
http://statistics.data.gov.uk/id/local-authority-district/23UB,Cheltenham Borough Council,Town Hall Operations,14034427,20140591,Ticket & Labeling Solutions UK Ltd,R4000-CUL102,Equipment Purchase,06/03/2015,"1,182.00 "
http://statistics.data.gov.uk/id/local-authority-district/23UB,Cheltenham Borough Council,Town Hall Operations,14034426,20140704,Ticket & Labeling Solutions UK Ltd,R4000-CUL102,Equipment Purchase,06/03/2015,"2,651.00 "
http://statistics.data.gov.uk/id/local-authority-district/23UB,Cheltenham Borough Council,Treasury Management,14035657,103123,Lavat Consulting Limited,R4420-COR006,Legal Expenses And Court Costs,27/03/2015,"4,000.00 "
http://statistics.data.gov.uk/id/local-authority-district/23UB,Cheltenham Borough Council,Urban Design,14035674,7402192064,Dell Corporation Limited,R4000-URB101,Equipment Purchase,27/03/2015,564.90 
http://statistics.data.gov.uk/id/local-authority-district/23UB,Cheltenham Borough Council,Waste & Recycling - Marketing,14035105,3933,Agripa Solutions Limited,R4317-RYC007,Non Staff Advertising,06/03/2015,850.00 
http://statistics.data.gov.uk/id/local-authority-district/23UB,Cheltenham Borough Council,Waste & Recycling - Marketing,14035669,19273,Peppermint Print Limited,R4317-RYC007,Non Staff Advertising,27/03/2015,"1,542.00 "
http://statistics.data.gov.uk/id/local-authority-district/23UB,Cheltenham Borough Council,Waste & Recycling - Marketing,14035106,3932,Agripa Solutions Limited,R4317-RYC007,Non Staff Advertising,06/03/2015,"4,770.00 "
http://statistics.data.gov.uk/id/local-authority-district/23UB,Cheltenham Borough Council,Window & Door Renewals,14035812,15344,Bowater Building Products Limited T/A Bowater Projects,C1107-CAH017,Building Works,31/03/2015,"22,066.76 "
http://statistics.data.gov.uk/id/local-authority-district/23UB,Cheltenham Borough Council,Telephones,10014685,Direct debit payment,VIRGIN MEDIA,R4515-SUP006,Comms - Telephone service / rental charges,02/03/2015,"2,015.04 "
http://statistics.data.gov.uk/id/local-authority-district/23UB,Cheltenham Borough Council,Telephones,10014685,Direct debit payment,VIRGIN MEDIA,R4515-SUP006,Comms - Telephone service / rental charges,02/03/2015,"2,139.36 "
http://statistics.data.gov.uk/id/local-authority-district/23UB,Cheltenham Borough Council,Supervision and Management,10014671,Direct debit payment,SOUTHERN ELECTRIC,R2100-HRA110,Electricity,03/03/2015,"9,002.30 "
http://statistics.data.gov.uk/id/local-authority-district/23UB,Cheltenham Borough Council,Treasury Management,10014671,Direct debit payment,Lloyds Bank,R4403-COR006,Bank Charges,03/03/2015,621.22 
http://statistics.data.gov.uk/id/local-authority-district/23UB,Cheltenham Borough Council,Treasury Management,10014671,Direct debit payment,Lloyds Bank,R4403-COR006,Bank Charges,03/03/2015,"1,604.76 "
http://statistics.data.gov.uk/id/local-authority-district/23UB,Cheltenham Borough Council,Treasury Management,10014615,Direct debit payment,HMRC VAT,R4984-COR006,Irrecoverable Input VAT,03/03/2015,"15,325.00 "
http://statistics.data.gov.uk/id/local-authority-district/23UB,Cheltenham Borough Council,Treasury Management,10014788,Direct debit payment,CARDNET ,R4428-COR006,Services - credit card charges,13/03/2015,663.39 
http://statistics.data.gov.uk/id/local-authority-district/23UB,Cheltenham Borough Council,Treasury Management,10014788,Direct debit payment,CARDNET ,R4428-COR006,Services - credit card charges,13/03/2015,832.21 
http://statistics.data.gov.uk/id/local-authority-district/23UB,Cheltenham Borough Council,Town Hall Repairs & Maintenance,10014772,Direct debit payment,NPOWER - TH,R2100-CUL112,Electricity,19/03/2015,"2,336.55 "
http://statistics.data.gov.uk/id/local-authority-district/23UB,Cheltenham Borough Council,Recreation Centre Repairs & Maintenance,10014772,Direct debit payment,NPOWER - SWIMMING POOL,R2100-REC111,Electricity,19/03/2015,"2,622.43 "
http://statistics.data.gov.uk/id/local-authority-district/23UB,Cheltenham Borough Council,Art Gallery & Museum Repairs & Maintenance,10014772,Direct debit payment,NPOWER - AGM,R2100-CUL117,Electricity,19/03/2015,"3,208.21 "
http://statistics.data.gov.uk/id/local-authority-district/23UB,Cheltenham Borough Council,Recreation Centre Repairs & Maintenance,10014772,Direct debit payment,NPOWER - REC CENTRE,R2100-REC111,Electricity,19/03/2015,"3,328.43 "
http://statistics.data.gov.uk/id/local-authority-district/23UB,Cheltenham Borough Council,Cheltenham Depot,10014772,Direct debit payment,NPOWER - CENTRAL DEPOT,R2100-ADB103,Electricity,19/03/2015,"3,590.91 "
http://statistics.data.gov.uk/id/local-authority-district/23UB,Cheltenham Borough Council,Cheltenham Municipal Offices,10014772,Direct debit payment,NPOWER - MUNI OFFICE,R2100-ADB101,Electricity,19/03/2015,"4,185.77 "
http://statistics.data.gov.uk/id/local-authority-district/23UB,Cheltenham Borough Council,Car Parks - Off Street Operations,10014852,Direct debit payment,WORLDPAY - MARCH,R4428-CPK001,Services - credit card charges,19/03/2015,"1,409.39 "
http://statistics.data.gov.uk/id/local-authority-district/23UB,Cheltenham Borough Council,Town Hall Operations,10014773,Direct debit payment,ARCHANT,R4317-CUL102,Non Staff Advertising,20/03/2015,"1,025.00 "
http://statistics.data.gov.uk/id/local-authority-district/23UB,Cheltenham Borough Council,Recreation Centre Repairs & Maintenance,10014855,Direct debit payment,SEVERN TRENT WATER,R2401-REC111,Water Services - Metered,23/03/2015,"1,890.31 "
http://statistics.data.gov.uk/id/local-authority-district/23UB,Cheltenham Borough Council,Car Parks - Off Street Operations,10014809,Direct debit payment,SOUTHERN ELECTRIC - REGENT ARCADE CP,R2100-CPK001,Electricity,24/03/2015,607.55 
http://statistics.data.gov.uk/id/local-authority-district/23UB,Cheltenham Borough Council,"Cemetery, Crematorium and Churchyards",10014809,Direct debit payment,SOUTHERN ELECTRIC - CEM & CREM,R2100-CCM001,Electricity,24/03/2015,647.33 
http://statistics.data.gov.uk/id/local-authority-district/23UB,Cheltenham Borough Council,Pittville Pump Room Repairs & Maintenance,10014809,Direct debit payment,SOUTHERN ELECTRIC - PITTVILLE PUMP ROOMS,R2100-CUL113,Electricity,24/03/2015,894.65 
http://statistics.data.gov.uk/id/local-authority-district/23UB,Cheltenham Borough Council,Art Gallery & Museum Repairs & Maintenance,10014809,Direct debit payment,SOUTHERN ELECTRIC - AGM,R2100-CUL117,Electricity,24/03/2015,"1,041.66 "
http://statistics.data.gov.uk/id/local-authority-district/23UB,Cheltenham Borough Council,Car Parks - Off Street Operations,10014809,Direct debit payment,SOUTHERN ELECTRIC - GROSVENOR TCE CP,R2100-CPK001,Electricity,24/03/2015,"1,089.32 "
http://statistics.data.gov.uk/id/local-authority-district/23UB,Cheltenham Borough Council,Art Gallery & Museum Repairs & Maintenance,10014809,Direct debit payment,SOUTHERN ELECTRIC - AGM2,R2100-CUL117,Electricity,24/03/2015,"1,096.70 "
http://statistics.data.gov.uk/id/local-authority-district/23UB,Cheltenham Borough Council,Sports & Open Spaces Operations,10014809,Direct debit payment,CORONA - AGG GARDNER PAV,R2101-OPS002,Gas,24/03/2015,528.15 
http://statistics.data.gov.uk/id/local-authority-district/23UB,Cheltenham Borough Council,Supervision and Management,10014809,Direct debit payment,CORONA - COOPERS COURT,R2101-HRA110,Gas,24/03/2015,705.30 
http://statistics.data.gov.uk/id/local-authority-district/23UB,Cheltenham Borough Council,Supervision and Management,10014809,Direct debit payment,CORONA - BULLINGHAM COURT,R2101-HRA110,Gas,24/03/2015,803.72 
http://statistics.data.gov.uk/id/local-authority-district/23UB,Cheltenham Borough Council,Supervision and Management,10014809,Direct debit payment,CORONA - POPES CLOSE,R2101-HRA110,Gas,24/03/2015,"1,024.84 "
http://statistics.data.gov.uk/id/local-authority-district/23UB,Cheltenham Borough Council,Pittville Pump Room Repairs & Maintenance,10014809,Direct debit payment,CORONA - PITTVILLE PUMP ROOM,R2101-CUL113,Gas,24/03/2015,"1,035.73 "
http://statistics.data.gov.uk/id/local-authority-district/23UB,Cheltenham Borough Council,Supervision and Management,10014809,Direct debit payment,CORONA - WALLACE HOUSE,R2101-HRA110,Gas,24/03/2015,"1,197.46 "
http://statistics.data.gov.uk/id/local-authority-district/23UB,Cheltenham Borough Council,Supervision and Management,10014809,Direct debit payment,CORONA - GILBERT WARD COURT,R2101-HRA110,Gas,24/03/2015,"1,263.67 "
http://statistics.data.gov.uk/id/local-authority-district/23UB,Cheltenham Borough Council,Supervision and Management,10014809,Direct debit payment,CORONA - GOLDFOOT HOUSE,R2101-HRA110,Gas,24/03/2015,"1,345.44 "
http://statistics.data.gov.uk/id/local-authority-district/23UB,Cheltenham Borough Council,Arle Road Nursery Operations,10014809,Direct debit payment,CORONA - ARLE NURSERY,R2101-OPS101,Gas,24/03/2015,"1,783.87 "
http://statistics.data.gov.uk/id/local-authority-district/23UB,Cheltenham Borough Council,Town Hall Repairs & Maintenance,10014809,Direct debit payment,CORONA - TH,R2101-CUL112,Gas,24/03/2015,"2,559.21 "
http://statistics.data.gov.uk/id/local-authority-district/23UB,Cheltenham Borough Council,Cheltenham Municipal Offices,10014809,Direct debit payment,CORONA - MO,R2101-ADB101,Gas,24/03/2015,"3,170.15 "
http://statistics.data.gov.uk/id/local-authority-district/23UB,Cheltenham Borough Council,Art Gallery & Museum Repairs & Maintenance,10014809,Direct debit payment,CORONA - AGM,R2101-CUL117,Gas,24/03/2015,"3,576.75 "
http://statistics.data.gov.uk/id/local-authority-district/23UB,Cheltenham Borough Council,Cheltenham Depot,10014809,Direct debit payment,CORONA - CENTRAL DEPOT,R2101-ADB103,Gas,24/03/2015,"3,690.15 "
http://statistics.data.gov.uk/id/local-authority-district/23UB,Cheltenham Borough Council,"Cemetery, Crematorium and Churchyards",10014809,Direct debit payment,CORONA - CREM,R2101-CCM001,Gas,24/03/2015,"5,198.87 "
http://statistics.data.gov.uk/id/local-authority-district/23UB,Cheltenham Borough Council,Recreation Centre Repairs & Maintenance,10014809,Direct debit payment,CORONA - REC CENTRE,R2101-REC111,Gas,24/03/2015,"14,120.24 "
http://statistics.data.gov.uk/id/local-authority-district/23UB,Cheltenham Borough Council,Cheltenham Depot,10014809,Direct debit payment,SEVERN TRENT WATER,R2401-ADB103,Water Services - Metered,24/03/2015,727.79 
http://statistics.data.gov.uk/id/local-authority-district/23UB,Cheltenham Borough Council,Car Parks - Off Street Operations,10014809,Direct debit payment,SEVERN TRENT WATER - NORTHFIELD TCE CP,R2402-CPK001,Sewerage and Environmental Services,24/03/2015,636.62 
http://statistics.data.gov.uk/id/local-authority-district/23UB,Cheltenham Borough Council,Cheltenham Depot,10014809,Direct debit payment,SEVERN TRENT WATER,R2402-ADB103,Sewerage and Environmental Services,24/03/2015,"1,151.07 "
http://statistics.data.gov.uk/id/local-authority-district/23UB,Cheltenham Borough Council,Town Hall Repairs & Maintenance,10014809,Direct debit payment,SEVERN TRENT WATER - TH,R2402-CUL112,Sewerage and Environmental Services,24/03/2015,"1,891.18 "
http://statistics.data.gov.uk/id/local-authority-district/23UB,Cheltenham Borough Council,Land & Property presale costs,10014802,Direct debit payment,REDACTED,C1000-CAP401,Acquisition Of Land,26/03/2015,"360,000.00 "
http://statistics.data.gov.uk/id/local-authority-district/23UB,Cheltenham Borough Council,Treasury Management,10014844,Direct debit payment,Lloyds Bank,R4403-COR006,Bank Charges,30/03/2015,922.26 
http://statistics.data.gov.uk/id/local-authority-district/23UB,Cheltenham Borough Council,Supervision and Management,10014878,Direct debit payment,SOUTHERN ELECTRIC,R2100-HRA110,Electricity,31/03/2015,"2,020.09 "
http://statistics.data.gov.uk/id/local-authority-district/23UB,Cheltenham Borough Council,Council Tax Collection,10014803,Business Charges Card,BUSINESS CHG CARD -  HM COURTS SVC,R4420-LTC001,Legal Expenses And Court Costs,04/03/2015,987.00 
"Note: Yellow highlighted cells above, have been amended to reflect correction of incorrect code / description included in original published Transparency report",,,,,,,,,
